bitfinex/quotes_ETHUSD_20250130
["timestamp","ask_amount","ask_price","bid_price","bid_amount"]
[1738238132855,3.09563,3230.4,3229.9,0.03456659]
[1738238133043,0.8133,3230.3,3229.8,3.09609]
[1738238133247,0.55,3230.2,3230.0,0.03454387]
[1738238133564,0.55,3230.2,3229.8,3.09609]
[1738238134270,0.55,3230.2,3229.9,0.03456659]
[1738238134479,1.305461,3230.2,3229.6,6.19255]
[1738238134637,1.305461,3230.2,3230.0,0.03454387]
[1738238134969,0.55,3230.0,3229.6,3.09627]
[1738238135362,0.55,3230.0,3229.4,3.12743082]
[1738238135565,0.55,3230.0,3229.5,3.09642]
[1738238136778,0.55,3229.9,3229.2,3.09669]
[1738238136985,0.55,3229.9,3229.4,3.09651]
[1738238137735,0.55,3229.9,3229.4,6.193]
[1738238137940,0.55,3229.9,3229.4,3.09649]
[1738238139080,0.8286,3229.8,3229.4,3.09649]
[1738238139282,0.55,3229.7,3229.2,3.0967]
[1738238139467,0.8286,3229.4,3229.0,3.09692]
[1738238139867,0.8286,3229.4,3229.1,3.09676]
[1738238140207,3.5634491,3230.9,3228.9,0.03096566]
[1738238140208,0.8286,3229.9,3228.9,0.03096566]
[1738238140390,3.92473,3229.9,3229.2,3.09674]
[1738238140567,0.55,3229.8,3229.3,3.09659]
[1738238140898,1.3458,3229.6,3229.1,3.09679]
[1738238141386,0.7784,3229.4,3228.9,0.03096275]
[1738238141593,0.55,3229.1,3228.7,3.09719]
[1738238141883,3.09676,3229.2,3228.7,3.09719]
[1738238141884,0.55,3229.2,3228.7,3.09719]
[1738238142279,0.55,3229.2,3228.7,3.1281587]
[1738238142478,0.7784,3229.4,3228.7,3.1281587]
[1738238142678,3.90768,3229.6,3229.1,3.09683]
[1738238142986,3.09647,3229.5,3228.9,3.09695]
[1738238143154,0.55,3229.4,3228.9,3.09695]
[1738238144278,0.55,3229.4,3229.0,3.09692]
[1738238145200,0.995777,3229.4,3228.6,5.34]
[1738238145454,3.64679,3229.2,3229.1,0.03387247]
[1738238145680,3.64679,3229.2,3228.6,8.43728]
[1738238145883,3.64679,3229.2,3229.1,0.03388614]
[1738238146088,3.64679,3229.2,3228.6,8.43728]
[1738238146254,3.64679,3229.2,3229.1,0.03388614]
[1738238146477,3.64679,3229.2,3228.7,3.09721]
[1738238146681,3.64674,3229.2,3229.1,0.03388614]
[1738238146889,3.64674,3229.2,3228.7,3.09721]
[1738238147094,3.64674,3229.2,3229.1,0.03388614]
[1738238147303,3.64674,3229.2,3228.7,3.09721]
[1738238147504,3.64674,3229.2,3229.1,0.03388614]
[1738238147717,0.55,3229.0,3228.5,3.12831948]
[1738238147883,0.55,3229.0,3228.5,3.09735]
[1738238147884,0.8128,3228.9,3228.5,3.09735]
[1738238150216,0.8128,3228.9,3228.5,6.1947]
[1738238150532,0.8128,3228.9,3228.6,3.0973]
[1738238153125,0.8128,3228.9,3228.4,3.09749]
[1738238153320,0.55,3228.8,3228.4,3.09749]
[1738238153928,0.55,3228.8,3228.5,3.09735]
[1738238154344,0.55,3228.8,3228.6,3.0973]
[1738238155348,0.55,3229.0,3228.6,3.0973]
[1738238157991,0.8093,3229.1,3228.8,3.09712]
[1738238158196,0.781,3229.4,3228.9,3.09702]
[1738238158391,0.55,3229.3,3228.9,3.09702]
[1738238159820,0.55,3229.3,3228.8,3.09712]
[1738238160014,0.55,3229.3,3228.8,6.19418]
[1738238160206,0.55,3229.3,3228.9,0.03419484]
[1738238161103,0.55,3229.3,3228.9,3.13120484]
[1738238161310,0.55,3229.3,3228.9,3.75403132]
[1738238162037,0.781,3229.4,3229.0,3.09685]
[1738238162339,0.55,3229.5,3229.0,3.09685]
[1738238162628,0.55,3229.5,3228.9,0.06516311]
[1738238162629,0.55,3229.5,3229.1,3.13097937]
[1738238163031,3.64654,3229.5,3229.1,0.03414937]
[1738238163331,3.64654,3229.5,3228.8,3.09705]
[1738238163332,3.09666,3229.3,3228.8,3.09705]
[1738238163632,0.55,3229.2,3228.6,3.0973]
[1738238163808,4.46574,3229.2,3228.9,0.03406151]
[1738238164011,5.22198,3229.2,3228.6,3.0973]
[1738238164210,4.46574,3229.2,3229.0,0.03403877]
[1738238164434,4.46574,3229.2,3228.6,3.0973]
[1738238164605,4.46574,3229.2,3229.1,0.03401604]
[1738238164813,4.46574,3229.2,3228.6,3.0973]
[1738238165012,4.46574,3229.2,3229.1,0.03401604]
[1738238165331,4.46574,3229.2,3228.6,3.0973]
[1738238165495,4.46574,3229.2,3229.1,0.03401604]
[1738238165700,4.46574,3229.2,3228.6,6.19452]
[1738238165900,4.46574,3229.2,3229.1,0.03401604]
[1738238166400,4.46574,3229.2,3228.6,3.09722]
[1738238166594,0.55,3229.0,3228.7,0.03410699]
[1738238166798,3.647,3229.0,3228.5,3.09739]
[1738238166996,3.647,3229.0,3228.6,0.03412973]
[1738238170836,3.647,3229.0,3228.6,3.09731]
[1738238171137,0.55,3229.1,3228.7,0.03348539]
[1738238172312,0.55,3229.1,3228.7,3.13068539]
[1738238172770,0.55,3229.1,3228.8,3.09707]
[1738238172930,0.55,3229.1,3228.7,3.75348493]
[1738238173241,0.55,3229.1,3228.9,3.097]
[1738238173605,0.55,3229.1,3229.0,0.03341717]
[1738238174008,0.55,3229.1,3228.7,3.0972]
[1738238174305,0.55,3229.1,3228.8,0.03346265]
[1738238175543,0.55,3229.1,3228.9,3.09702]
[1738238175941,0.55,3229.1,3229.0,0.03292616]
[1738238177151,0.55,3229.1,3228.7,4.59442515]
[1738238177655,0.55,3229.1,3228.8,0.03301951]
[1738238177951,0.55,3228.9,3228.5,3.09737]
[1738238178110,0.55,3229.7,3228.1,4.59504515]
[1738238178314,0.55,3229.7,3227.0,25.42670422]
[1738238178315,0.802,3228.3,3227.7,4.59538515]
[1738238178557,0.802,3228.3,3227.1,14.15]
[1738238178558,0.55,3228.2,3227.4,2.92134634]
[1738238178742,3.09737,3228.6,3228.3,3.09756]
[1738238178743,0.7689,3228.6,3228.3,3.09756]
[1738238179064,0.7689,3229.0,3228.5,3.09741]
[1738238179257,0.7689,3229.0,3228.3,3.23110234]
[1738238179258,0.7689,3229.0,3228.3,3.407306]
[1738238179436,0.55,3228.8,3228.0,3.09782]
[1738238179613,1.3769,3228.5,3228.0,3.09782]
[1738238179947,1.3769,3228.5,3228.1,3.09779]
[1738238180341,1.3769,3228.5,3228.1,3.32867654]
[1738238181318,1.3769,3228.5,3228.2,0.23088654]
[1738238182555,1.3769,3228.5,3228.1,3.09779]
[1738238182754,1.3769,3228.5,3228.3,0.28844901]
[1738238183457,4.47433,3228.5,3228.3,0.28844901]
[1738238183754,4.47433,3228.5,3227.7,2.92134634]
[1738238183755,0.55,3228.3,3228.0,3.09783]
[1738238183940,0.55,3228.4,3228.1,0.23072217]
[1738238184348,3.64752,3228.4,3228.1,0.23072217]
[1738238184972,3.64752,3228.4,3228.2,0.28832268]
[1738238186030,0.55,3228.4,3228.2,0.28832268]
[1738238186449,0.55,3228.4,3228.0,3.09788]
[1738238186650,0.55,3228.4,3228.1,3.09778]
[1738238188137,0.55,3228.4,3228.0,2.92134634]
[1738238188572,0.55,3228.4,3228.1,0.23054454]
[1738238188777,0.55,3228.4,3228.1,0.51872938]
[1738238189246,0.55,3228.2,3228.1,0.51872938]
[1738238189840,3.64756,3228.4,3228.1,0.51872938]
[1738238190041,3.64756,3228.4,3228.1,0.28818484]
[1738238190360,1.3015,3228.3,3228.2,0.3194731]
[1738238190554,4.3991,3228.3,3228.2,0.3194731]
[1738238190751,5.148766,3228.3,3228.2,0.3194731]
[1738238191163,5.148766,3228.3,3228.2,0.03128826]
[1738238191550,0.55,3228.1,3227.8,0.23055709]
[1738238192076,4.40714,3228.0,3227.9,0.28818484]
[1738238193783,0.55,3227.9,3227.5,0.23055709]
[1738238194281,0.55,3227.9,3227.5,0.8733058]
[1738238194485,0.8301,3228.2,3227.7,3.09814]
[1738238194861,0.55,3228.0,3227.5,3.32888709]
[1738238195059,3.64796,3228.0,3227.5,3.32888709]
[1738238195482,0.8301,3227.9,3227.5,3.32888709]
[1738238195646,0.8301,3227.9,3227.6,0.28809631]
[1738238196047,3.92811,3227.9,3227.6,0.28809631]
[1738238197167,3.92811,3227.9,3227.4,6.01978634]
[1738238197689,0.55,3227.8,3227.3,3.0985]
[1738238197999,0.55,3227.8,3227.0,20.73060907]
[1738238198000,1.3566,3227.3,3227.0,20.73060907]
[1738238198293,3.09866,3227.2,3227.0,20.73060907]
[1738238198493,3.64875,3227.1,3227.0,20.73060907]
[1738238198690,0.55,3227.1,3227.0,20.73060907]
[1738238199187,3.90524,3227.3,3227.0,20.73060907]
[1738238199759,0.55,3227.2,3227.0,20.73060907]
[1738238203656,0.8066,3227.3,3227.0,25.86488438]
[1738238203991,0.7894,3227.8,3227.1,2.92134634]
[1738238204209,0.7894,3227.8,3227.3,3.09849]
[1738238205262,0.7894,3227.8,3227.4,0.03120927]
[1738238206699,0.7894,3227.8,3227.4,3.12964927]
[1738238208120,0.7894,3227.8,3227.4,0.03120927]
[1738238208420,0.7894,3227.8,3227.3,3.09855]
[1738238208619,0.7894,3227.8,3227.5,0.03118651]
[1738238208823,0.7894,3227.8,3227.4,0.03120927]
[1738238209136,0.7894,3227.8,3227.5,0.03118651]
[1738238209319,3.88751,3227.8,3227.3,3.09855]
[1738238209520,3.88751,3227.8,3227.6,0.03116375]
[1738238209816,3.88751,3227.8,3227.3,3.09855]
[1738238209982,4.43751,3227.8,3227.7,0.031141]
[1738238210163,4.43751,3227.8,3227.3,3.09855]
[1738238210425,1.3394,3227.8,3227.7,0.031141]
[1738238210570,1.3394,3227.8,3227.4,3.09844]
[1738238210871,4.43748,3227.8,3227.4,0.2878941]
[1738238211072,4.43748,3227.8,3227.5,0.03118651]
[1738238211888,4.43748,3227.8,3227.3,3.32888022]
[1738238212085,1.3394,3227.8,3227.6,0.03116375]
[1738238212417,0.7749,3228.1,3227.6,3.0982]
[1738238212619,0.7749,3228.1,3227.7,0.031141]
[1738238213125,3.0979,3228.0,3227.7,0.031141]
[1738238213268,3.0979,3228.0,3227.5,3.09834]
[1738238213464,3.0979,3228.0,3227.8,0.03104301]
[1738238213705,3.0979,3228.0,3227.6,0.28795958]
[1738238213885,3.0979,3228.0,3227.9,0.03102026]
[1738238214086,3.0979,3228.0,3227.6,0.28795958]
[1738238214323,3.0979,3228.0,3227.9,0.03102026]
[1738238214516,3.0979,3228.0,3227.6,0.28795958]
[1738238214688,3.0979,3228.0,3227.9,0.03102026]
[1738238214885,3.0979,3228.0,3227.6,0.28795958]
[1738238215090,3.0979,3228.0,3227.9,0.03102026]
[1738238215323,3.0979,3228.0,3227.5,3.09834]
[1738238215470,3.0979,3228.0,3227.9,0.03102026]
[1738238215673,0.7749,3228.1,3227.7,3.09817]
[1738238215904,0.7749,3228.1,3227.9,0.03102026]
[1738238216101,0.7749,3228.1,3227.7,3.09817]
[1738238216288,4.4227,3228.1,3228.0,0.03099751]
[1738238216488,4.4227,3228.1,3227.5,3.09828]
[1738238216707,4.4227,3228.1,3228.0,0.03099751]
[1738238217030,3.0979,3228.0,3227.5,3.09828]
[1738238217833,3.0979,3228.0,3227.6,0.28815753]
[1738238218029,1.3042,3227.9,3227.6,0.28815753]
[1738238218322,3.09815,3227.8,3227.6,0.28815753]
[1738238218669,3.09815,3227.8,3227.3,3.09852]
[1738238220125,3.09815,3227.8,3227.4,0.28832804]
[1738238220307,3.09823,3227.7,3227.4,0.31946207]
[1738238220616,3.09808,3227.8,3227.4,0.31946207]
[1738238220833,1.3042,3227.9,3227.4,3.41788207]
[1738238221726,1.3042,3227.9,3227.4,4.06951828]
[1738238222027,1.3042,3227.9,3227.5,3.09836]
[1738238222508,1.3042,3227.9,3227.6,0.03108852]
[1738238223408,3.87755,3228.2,3227.7,3.09815]
[1738238223790,0.55,3228.1,3227.8,0.03095412]
[1738238224483,3.64784,3228.1,3227.8,0.03095412]
[1738238224683,0.55,3228.1,3227.5,3.09836]
[1738238224982,3.09794,3228.0,3227.9,0.03091427]
[1738238225201,3.09794,3228.0,3227.5,6.19667]
[1738238225397,3.89154,3228.0,3227.9,0.0309006]
[1738238225908,3.89154,3228.0,3227.6,0.28836756]
[1738238226212,3.89154,3228.0,3227.9,0.0309006]
[1738238226417,3.89154,3228.0,3227.6,0.51904841]
[1738238227017,3.89154,3228.0,3227.7,0.0309461]
[1738238229514,3.89154,3228.0,3227.8,0.28839768]
[1738238229818,0.55,3228.1,3227.8,0.31932103]
[1738238230483,3.09775,3228.2,3227.8,0.31932103]
[1738238230721,3.09775,3228.2,3227.9,0.28839768]
[1738238230918,3.09775,3228.2,3227.9,0.31929828]
[1738238231282,0.8229,3228.6,3228.0,3.09784]
[1738238231487,3.92029,3228.6,3228.0,3.12871785]
[1738238231819,3.09742,3228.5,3228.0,3.12871785]
[1738238232007,3.09742,3228.5,3228.1,0.28839768]
[1738238232386,3.09742,3228.5,3228.2,0.03083235]
[1738238233892,3.09742,3228.5,3228.0,3.09784]
[1738238234122,3.09742,3228.5,3228.3,0.0308096]
[1738238234307,3.09742,3228.5,3228.0,3.09784]
[1738238234508,3.09742,3228.5,3228.4,0.03066039]
[1738238234708,3.09742,3228.5,3228.0,3.09784]
[1738238234907,0.8229,3228.6,3228.4,0.03066039]
[1738238235218,3.09742,3228.5,3228.0,3.09789]
[1738238235428,3.92021,3228.6,3228.5,0.03063765]
[1738238235918,3.92021,3228.6,3228.1,3.09774]
[1738238236125,3.92021,3228.6,3228.5,0.03063765]
[1738238236326,3.92021,3228.6,3228.1,3.32847785]
[1738238236526,3.92021,3228.6,3228.5,0.03063765]
[1738238236728,3.92021,3228.6,3228.1,3.32847785]
[1738238236929,3.92021,3228.6,3228.5,0.03063765]
[1738238237129,3.92021,3228.6,3228.1,3.09774]
[1738238237333,3.92021,3228.6,3228.5,0.03063765]
[1738238237700,3.92021,3228.6,3228.2,0.28838582]
[1738238237899,3.92021,3228.6,3228.5,0.03063765]
[1738238238132,3.92021,3228.6,3228.2,0.28838582]
[1738238238431,3.92021,3228.6,3228.5,0.03063765]
[1738238238603,3.92021,3228.6,3228.2,0.28838582]
[1738238238604,0.8229,3228.6,3228.2,0.28838582]
[1738238238805,3.92021,3228.6,3228.5,0.03063765]
[1738238239138,3.92021,3228.6,3228.3,0.28838582]
[1738238239347,3.09744,3228.5,3228.3,0.28838582]
[1738238239560,3.0975,3228.4,3228.3,0.28838582]
[1738238240249,3.0975,3228.4,3227.9,3.09792]
[1738238240493,3.0975,3228.4,3227.9,7.33178663]
[1738238240646,3.09779,3228.1,3228.0,0.23066136]
[1738238241141,3.09779,3228.1,3228.0,0.51901232]
[1738238242659,3.09779,3228.1,3228.0,0.28835096]
[1738238242966,3.09779,3228.1,3227.8,0.23066136]
[1738238243868,3.09779,3228.1,3227.5,3.09832]
[1738238244182,3.09779,3228.1,3227.5,4.89113763]
[1738238244577,3.8478,3228.2,3227.6,0.28846393]
[1738238244944,6.94559,3228.2,3227.7,3.09817]
[1738238245142,3.0978,3228.1,3227.7,3.09817]
[1738238245468,3.8478,3228.2,3227.7,3.09817]
[1738238245778,3.8478,3228.2,3227.8,0.28846393]
[1738238246284,3.8478,3228.2,3227.8,0.51923907]
[1738238246972,3.8478,3228.2,3227.9,0.28846393]
[1738238248367,3.8478,3228.2,3228.0,0.28846393]
[1738238248671,3.09779,3228.1,3228.0,0.28846393]
[1738238249983,3.09779,3228.1,3227.7,0.23073799]
[1738238250465,3.09779,3228.1,3227.8,0.03082765]
[1738238250667,3.09779,3228.1,3227.8,0.26156564]
[1738238250863,3.09779,3228.1,3227.8,0.55005393]
[1738238251574,3.8478,3228.2,3227.8,0.55005393]
[1738238251738,3.0979,3228.0,3227.9,0.28848829]
[1738238251951,3.0979,3228.0,3227.9,0.31929319]
[1738238252364,3.6479,3228.0,3227.9,0.31929319]
[1738238252677,4.4652,3228.0,3227.9,0.31929319]
[1738238253070,4.4652,3228.0,3227.9,0.0308049]
[1738238253272,5.259977,3228.0,3227.9,0.0308049]
[1738238253464,3.09867,3227.2,3227.0,20.0]
[1738238253670,0.55,3227.3,3227.0,20.0]
[1738238253871,3.64866,3227.2,3227.1,0.02893449]
[1738238259464,4.45516,3227.2,3227.1,0.02893449]
[1738238259666,8.218041,3227.2,3227.1,0.02893449]
[1738238259867,4.44755,3227.1,3227.0,20.0]
[1738238260071,4.45505,3227.1,3227.0,20.0]
[1738238262505,7.45505,3227.1,3227.0,20.0]
[1738238262704,7.45505,3227.1,3227.0,18.45057]
[1738238263007,8.8958241,3227.1,3227.0,12.28457304]
[1738238263554,8.8958241,3227.1,3227.0,10.73514304]
[1738238263884,8.8958241,3227.1,3227.0,3.70412304]
[1738238264046,8.8958241,3227.1,3227.0,2.4086456]
[1738238264251,8.8958241,3227.1,3225.3,0.8]
[1738238264252,3.10024,3225.6,3225.3,0.8]
[1738238265259,0.55,3225.5,3225.0,0.8]
[1738238265561,3.10009,3225.8,3225.1,0.8]
[1738238265762,3.65018,3225.7,3225.1,0.8]
[1738238265999,3.65018,3225.7,3225.1,1.234681]
[1738238266287,0.55,3225.7,3225.1,1.234681]
[1738238266463,0.55,3225.7,3225.2,3.10058]
[1738238267763,3.65011,3225.7,3225.1,1.234681]
[1738238268255,3.65011,3225.7,3225.1,4.335341]
[1738238268454,3.65011,3225.7,3225.2,0.7436041]
[1738238269069,0.55,3225.7,3225.2,0.7436041]
[1738238269394,3.65007,3225.8,3225.2,3.8441641]
[1738238269552,0.55,3225.6,3225.2,0.7436041]
[1738238270190,3.1001,3225.7,3224.9,1.23074]
[1738238270191,3.89206,3225.5,3224.9,1.23074]
[1738238270392,0.55,3225.4,3224.9,1.23074]
[1738238272455,3.6504,3225.4,3224.9,1.23074]
[1738238273793,0.55,3225.4,3224.9,4.33158]
[1738238273993,0.55,3225.4,3224.9,1.23074]
[1738238274373,3.65039,3225.4,3224.9,1.28874532]
[1738238274811,0.55,3225.4,3224.9,1.28874532]
[1738238275009,3.1002,3225.6,3225.0,3.10076]
[1738238275155,0.55,3225.5,3225.0,3.10076]
[1738238277271,0.55,3225.0,3224.5,0.7518]
[1738238277476,3.65097,3224.8,3224.2,0.7518]
[1738238277687,3.65097,3224.8,3224.6,0.05088289]
[1738238278094,3.65097,3224.8,3224.7,0.05084014]
[1738238278380,3.65097,3224.8,3224.2,0.7518]
[1738238278572,1.4407741,3227.1,3224.7,0.05084014]
[1738238278573,0.824,3225.7,3224.7,0.05084014]
[1738238278826,3.10045,3225.4,3224.8,6.84563803]
[1738238279025,0.55,3225.3,3224.8,6.89638543]
[1738238279184,3.0,3225.7,3225.2,0.821]
[1738238279379,3.10007,3225.8,3225.2,3.92157]
[1738238279585,3.92384,3226.0,3225.4,3.1003]
[1738238279908,3.92384,3226.0,3225.5,3.10028]
[1738238279909,3.09984,3226.0,3225.5,3.10028]
[1738238280266,3.92361,3226.3,3225.4,2.92369803]
[1738238280595,3.09961,3226.3,3225.7,3.85654]
[1738238280932,6.09967,3226.2,3225.7,0.7565]
[1738238281067,3.09991,3225.9,3225.3,0.7565]
[1738238281263,3.09991,3225.9,3225.3,3.85695]
[1738238281502,3.10001,3225.8,3225.3,0.7565]
[1738238283211,3.64989,3226.0,3225.3,0.7565]
[1738238283414,3.64989,3226.0,3225.4,3.10035]
[1738238284404,3.64989,3226.0,3225.4,3.796086]
[1738238285491,0.55,3226.0,3225.5,3.10027]
[1738238285915,3.0,3226.2,3225.6,3.10017]
[1738238286090,3.09964,3226.2,3225.6,3.10017]
[1738238286285,3.09955,3226.3,3225.6,3.10017]
[1738238286606,3.55,3226.2,3225.6,3.10017]
[1738238286932,3.55,3226.2,3225.4,3.796086]
[1738238286933,3.09991,3225.9,3225.4,3.796086]
[1738238289488,3.09991,3225.9,3225.4,9.136086]
[1738238290329,3.09991,3225.9,3225.5,0.28856948]
[1738238291205,0.55,3225.8,3225.5,0.28856948]
[1738238291405,3.10019,3225.6,3225.5,0.28856948]
[1738238291586,3.10019,3225.6,3225.4,5.34]
[1738238291786,3.65029,3225.5,3225.4,5.34]
[1738238292405,4.48179,3225.5,3225.4,5.34]
[1738238294519,3.65029,3225.5,3225.4,5.34]
[1738238295423,3.65029,3225.5,3225.0,3.10076]
[1738238295942,3.65029,3225.5,3224.9,5.34]
[1738238295943,3.65029,3225.5,3224.9,8.44084]
[1738238296747,3.65029,3225.5,3225.0,0.52021224]
[1738238297132,3.10034,3225.5,3225.0,0.52021224]
[1738238297332,3.10034,3225.5,3225.0,3.62098224]
[1738238297766,3.10042,3225.4,3225.0,0.52021224]
[1738238297969,3.10054,3225.3,3225.1,0.2890068]
[1738238298155,3.10042,3225.4,3225.1,0.34699515]
[1738238298347,3.65021,3225.6,3225.1,0.34699515]
[1738238298532,0.55,3225.4,3225.1,0.34699515]
[1738238299179,3.10046,3225.4,3225.1,0.34699515]
[1738238299335,3.65048,3225.3,3225.2,0.2890068]
[1738238299529,4.43868,3225.3,3225.2,0.2890068]
[1738238299932,4.44618,3225.3,3225.2,0.2890068]
[1738238300174,7.44618,3225.3,3225.2,0.2890068]
[1738238300676,3.10092,3224.9,3224.5,0.2890068]
[1738238300834,0.55,3224.8,3224.5,0.5202553]
[1738238301166,0.55,3224.8,3224.6,0.05095351]
[1738238301539,0.55,3225.0,3224.6,0.05095351]
[1738238301738,6.1006,3225.2,3224.7,3.10105]
[1738238302040,3.10083,3225.0,3224.8,0.05086802]
[1738238302258,3.10083,3225.0,3224.7,0.2890068]
[1738238302259,3.10087,3224.9,3224.7,0.2890068]
[1738238303160,3.10087,3224.9,3224.4,3.92023]
[1738238303647,3.65078,3225.0,3224.5,3.10124]
[1738238304372,3.65078,3225.0,3224.6,0.28889103]
[1738238304766,0.55,3225.0,3224.6,0.28889103]
[1738238304969,3.10088,3224.9,3224.6,0.28889103]
[1738238305168,3.10104,3224.8,3224.4,0.8189]
[1738238305339,4.48004,3224.8,3224.3,5.34]
[1738238306544,1.379,3224.8,3224.3,5.34]
[1738238306748,3.10106,3224.7,3224.3,5.34]
[1738238310152,3.10106,3224.7,3224.4,0.05103901]
[1738238310973,3.9266697,3224.7,3224.4,0.05103901]
[1738238312366,3.10106,3224.7,3224.4,0.05103901]
[1738238315484,0.55,3224.6,3224.4,0.05103901]
[1738238315648,0.55,3224.5,3224.4,0.05103901]
[1738238316481,0.55,3224.5,3224.1,3.10162]
[1738238316684,0.55,3224.5,3224.4,0.04115996]
[1738238316880,0.55,3224.6,3224.0,3.10167]
[1738238317086,3.65126,3224.5,3224.4,0.04115996]
[1738238317287,0.55,3224.5,3224.0,3.10167]
[1738238317490,0.55,3224.5,3224.4,0.04115996]
[1738238317655,0.55,3224.5,3224.1,3.10162]
[1738238317987,0.55,3224.5,3224.0,3.10167]
[1738238318159,0.55,3224.5,3224.2,0.04122836]
[1738238318494,0.55,3224.5,3224.1,3.10162]
[1738238318690,3.65128,3224.5,3224.3,0.04119416]
[1738238318892,4.326514,3224.5,3224.2,0.04122836]
[1738238319060,4.326514,3224.5,3224.4,0.04115996]
[1738238319265,4.326514,3224.5,3224.1,0.23099347]
[1738238319485,4.326514,3224.5,3224.4,0.04115996]
[1738238319689,1.225234,3224.5,3224.1,3.33261347]
[1738238319886,3.10115,3224.7,3224.4,0.04115996]
[1738238320089,0.55,3224.6,3224.1,3.33261347]
[1738238320290,0.55,3224.6,3224.5,0.04112576]
[1738238320496,0.55,3224.6,3224.2,3.10152]
[1738238320988,0.55,3224.6,3224.3,0.02857492]
[1738238321187,0.55,3224.6,3224.2,3.10152]
[1738238321378,0.55,3224.6,3224.4,0.02855212]
[1738238321552,0.55,3224.6,3224.2,3.10152]
[1738238321752,0.55,3224.6,3224.3,0.02857492]
[1738238321990,0.55,3224.6,3224.2,3.10152]
[1738238322154,0.55,3224.7,3224.4,0.02855212]
[1738238322464,0.55,3224.5,3224.2,3.10152]
[1738238322660,0.55,3224.5,3224.1,3.10162]
[1738238325196,0.55,3224.5,3224.2,0.02859772]
[1738238325414,0.55,3224.5,3224.1,3.10162]
[1738238325694,0.55,3224.5,3224.3,0.02857492]
[1738238325893,0.55,3224.5,3224.2,0.25996126]
[1738238326102,0.55,3224.5,3224.4,0.02859662]
[1738238326409,3.65125,3224.5,3224.4,0.02859662]
[1738238326584,4.3712912,3224.5,3224.2,0.23131904]
[1738238326754,4.3712912,3224.5,3224.4,0.02859662]
[1738238326957,4.3712912,3224.5,3224.2,0.23131904]
[1738238327201,3.65139,3224.4,3224.3,0.02861942]
[1738238327370,3.65139,3224.4,3224.2,0.23131904]
[1738238327557,4.39864912,3224.4,3224.3,0.02861942]
[1738238327761,4.39864912,3224.4,3224.1,0.23131904]
[1738238327958,4.39864912,3224.4,3224.2,0.02864222]
[1738238328212,4.39864912,3224.4,3224.1,0.23131904]
[1738238328213,4.44414,3224.3,3224.1,0.23131904]
[1738238328761,4.44414,3224.3,3223.9,5.34]
[1738238331297,7.54565,3224.3,3223.8,3.10186]
[1738238331594,4.44414,3224.3,3223.8,3.10186]
[1738238332165,1.3427,3224.3,3223.8,3.10186]
[1738238332364,0.55,3224.4,3223.9,3.10182]
[1738238332673,0.55,3224.4,3224.0,3.10166]
[1738238333065,3.65135,3224.4,3224.0,3.10166]
[1738238333297,3.65135,3224.4,3223.9,0.23150166]
[1738238334306,3.65135,3224.4,3223.9,3.33329166]
[1738238334475,3.65135,3224.4,3223.9,3.10179]
[1738238335365,0.55,3224.4,3224.0,3.10172]
[1738238335573,3.10125,3224.5,3224.0,3.10172]
[1738238335908,3.92046,3224.6,3223.8,3.10183]
[1738238335909,3.65141,3224.4,3223.8,3.10183]
[1738238336310,6.75282,3224.4,3223.8,3.10183]
[1738238336514,3.65141,3224.4,3223.8,3.10183]
[1738238337282,3.65141,3224.4,3223.9,6.43507753]
[1738238337607,3.65126,3224.5,3224.0,3.10169]
[1738238340203,3.65126,3224.5,3224.1,0.02881233]
[1738238343690,6.75257,3224.5,3224.1,0.02881233]
[1738238343891,3.65126,3224.5,3224.1,0.02881233]
[1738238344316,3.10137,3224.4,3224.1,0.02881233]
[1738238344511,0.7752,3224.2,3224.1,0.02881233]
[1738238344905,0.7752,3224.2,3223.8,3.10192]
[1738238345116,0.7752,3224.2,3224.1,0.02881233]
[1738238345318,0.7752,3224.2,3223.8,3.10192]
[1738238345492,0.55,3224.3,3224.1,0.02881233]
[1738238345691,0.55,3224.3,3223.8,3.10186]
[1738238345892,0.8126,3224.4,3224.2,0.02878953]
[1738238346111,0.8126,3224.4,3224.0,3.10172]
[1738238346324,3.91396,3224.4,3224.3,0.02876673]
[1738238346523,3.91396,3224.4,3223.9,3.10183]
[1738238346723,3.91396,3224.4,3224.3,0.02876673]
[1738238346933,3.91396,3224.4,3223.9,3.10183]
[1738238347629,0.8126,3224.4,3224.0,0.02883514]
[1738238347995,3.91395,3224.4,3224.0,0.02883514]
[1738238348308,3.91395,3224.4,3224.0,0.26052047]
[1738238348708,3.10146,3224.3,3224.0,0.26052047]
[1738238349004,0.8126,3224.4,3224.0,0.26052047]
[1738238349520,0.8126,3224.4,3224.0,0.02883514]
[1738238350032,3.91402,3224.4,3224.0,0.02883514]
[1738238350837,3.91402,3224.4,3223.9,3.10181]
[1738238351022,3.91402,3224.4,3224.0,0.02883174]
[1738238355167,3.91402,3224.4,3224.0,1.5305897]
[1738238357239,3.91402,3224.4,3224.0,4.6323197]
[1738238357747,3.91402,3224.4,3224.0,1.5305897]
[1738238358135,3.91402,3224.4,3224.1,0.52170688]
[1738238358635,3.91402,3224.4,3224.2,0.02878613]
[1738238358835,3.91402,3224.4,3224.1,0.52170688]
[1738238359046,3.91402,3224.4,3224.2,0.02878613]
[1738238359246,3.91402,3224.4,3224.1,0.52170688]
[1738238359473,3.91402,3224.4,3224.3,0.02876333]
[1738238359666,3.91402,3224.4,3224.0,1.50175796]
[1738238359867,3.91402,3224.4,3224.1,0.02880893]
[1738238360572,0.8126,3224.4,3224.1,0.02880893]
[1738238360790,3.86211,3225.0,3224.2,1.50175796]
[1738238360990,3.0,3224.9,3224.5,1.50175796]
[1738238361295,3.0,3224.9,3224.6,0.02864696]